[Event "Live Chess"]
[Site "Chess.com"]
[Date "2023.05.20"]
[Round "-"]
[White "misha464"]
[Black "PantherCal"]
[Result "0-1"]
[WhiteElo "761"]
[BlackElo "1858"]
[TimeControl "300"]
[EndTime "10:26:46 PDT"]
[Termination "PantherCal won by resignation"]

1. e4 {[%clk 0:04:57.7]} 1... d5 {[%clk 0:04:50]} 2. exd5 {[%clk 0:04:55.5]}
2... Qxd5 {[%clk 0:04:49.9]} 3. Nc3 {[%clk 0:04:55.4]} 3... Qa5 {[%clk
0:04:46.3]} 4. Nf3 {[%clk 0:04:49.9]} 4... Nf6 {[%clk 0:04:41]} 5. d4 {[%clk
0:04:48.6]} 5... Bf5 {[%clk 0:04:39.6]} 6. Bd2 {[%clk 0:04:47.1]} 6... c6 {[%clk
0:04:38.2]} 7. Be2 {[%clk 0:04:44.2]} 7... e6 {[%clk 0:04:33.5]} 8. O-O {[%clk
0:04:41.9]} 8... Nbd7 {[%clk 0:04:31.7]} 9. h3 {[%clk 0:04:41.3]} 9... Ba3
{[%clk 0:04:27.8]} 10. Ne4 {[%clk 0:04:27.3]} 10... Qd8 {[%clk 0:04:19.7]} 11.
Nxf6+ {[%clk 0:04:25.1]} 11... Nxf6 {[%clk 0:04:18.9]} 12. bxa3 {[%clk
0:04:24.6]} 12... O-O {[%clk 0:04:17.5]} 13. Bb4 {[%clk 0:04:21]} 13... Re8
{[%clk 0:04:14.6]} 14. Bd3 {[%clk 0:04:08.1]} 14... Bg6 {[%clk 0:04:09.6]} 15.
Ne5 {[%clk 0:04:06.2]} 15... Qxd4 {[%clk 0:04:01.2]} 16. Nxg6 {[%clk 0:03:59.3]}
16... hxg6 {[%clk 0:03:59.2]} 17. Re1 {[%clk 0:03:45.6]} 17... c5 {[%clk
0:03:54.6]} 18. Bd2 {[%clk 0:03:38.4]} 18... Rad8 {[%clk 0:03:52.8]} 19. Bc1
{[%clk 0:03:36.3]} 19... c4 {[%clk 0:03:49.8]} 20. Qg4 {[%clk 0:03:10.7]} 20...
Nxg4 {[%clk 0:03:46.3]} 0-1

[Event "Live Chess"]
[Site "Chess.com"]
[Date "2023.05.20"]
[Round "-"]
[White "Vedant-1411"]
[Black "booktrunk"]
[Result "0-1"]
[WhiteElo "878"]
[BlackElo "1366"]
[TimeControl "300"]
[EndTime "10:26:55 PDT"]
[Termination "booktrunk won by resignation"]

1. d4 {[%clk 0:04:52.4]} 1... d5 {[%clk 0:04:59.9]} 2. Nf3 {[%clk 0:04:51.3]}
2... Bf5 {[%clk 0:04:56.3]} 3. Nc3 {[%clk 0:04:50.8]} 3... e6 {[%clk 0:04:54.3]}
4. a3 {[%clk 0:04:50.4]} 4... c6 {[%clk 0:04:50.4]} 5. Bf4 {[%clk 0:04:50]} 5...
Nf6 {[%clk 0:04:47.3]} 6. e3 {[%clk 0:04:49.5]} 6... Nh5 {[%clk 0:04:44.9]} 7.
Bd3 {[%clk 0:04:47.8]} 7... Nxf4 {[%clk 0:04:43.6]} 8. exf4 {[%clk 0:04:46.1]}
8... Bxd3 {[%clk 0:04:41.5]} 9. Qxd3 {[%clk 0:04:45.1]} 9... Be7 {[%clk
0:04:40.2]} 10. O-O {[%clk 0:04:44.6]} 10... Qd6 {[%clk 0:04:37.8]} 11. g3
{[%clk 0:04:41.6]} 11... Nd7 {[%clk 0:04:34.3]} 12. Ne5 {[%clk 0:04:37.9]} 12...
Nf6 {[%clk 0:04:28.5]} 13. Ng4 {[%clk 0:04:35.1]} 13... Nxg4 {[%clk 0:04:27.1]}
0-1

[Event "Live Chess"]
[Site "Chess.com"]
[Date "2023.05.20"]
[Round "-"]
[White "seabuck"]
[Black "HoarseyHorsey"]
[Result "1-0"]
[WhiteElo "1845"]
[BlackElo "1384"]
[TimeControl "300"]
[EndTime "10:26:58 PDT"]
[Termination "seabuck won by checkmate"]

1. d4 {[%clk 0:04:58.6]} 1... Nf6 {[%clk 0:04:58]} 2. c4 {[%clk 0:04:57.5]} 2...
e6 {[%clk 0:04:57]} 3. Nc3 {[%clk 0:04:56.3]} 3... d5 {[%clk 0:04:56.4]} 4. Nf3
{[%clk 0:04:54.1]} 4... Bb4 {[%clk 0:04:53.5]} 5. e3 {[%clk 0:04:48.1]} 5... O-O
{[%clk 0:04:52.4]} 6. a3 {[%clk 0:04:46.4]} 6... Bxc3+ {[%clk 0:04:51.4]} 7.
bxc3 {[%clk 0:04:45.2]} 7... c6 {[%clk 0:04:49.8]} 8. Bd3 {[%clk 0:04:39.7]}
8... Nbd7 {[%clk 0:04:48.6]} 9. O-O {[%clk 0:04:38.1]} 9... Re8 {[%clk
0:04:47.4]} 10. Re1 {[%clk 0:04:33.5]} 10... Qc7 {[%clk 0:04:45.9]} 11. Qc2
{[%clk 0:04:23.9]} 11... e5 {[%clk 0:04:44.4]} 12. dxe5 {[%clk 0:04:15.7]} 12...
Nxe5 {[%clk 0:04:44.3]} 13. Nxe5 {[%clk 0:04:13.9]} 13... Qxe5 {[%clk
0:04:44.2]} 14. cxd5 {[%clk 0:04:08.6]} 14... cxd5 {[%clk 0:04:41.8]} 15. Bb2
{[%clk 0:04:04.4]} 15... h6 {[%clk 0:04:36.3]} 16. c4 {[%clk 0:04:00.2]} 16...
Qd6 {[%clk 0:04:30.8]} 17. Bxf6 {[%clk 0:03:49.1]} 17... Qxf6 {[%clk 0:04:29.2]}
18. cxd5 {[%clk 0:03:46]} 18... Rd8 {[%clk 0:04:25.9]} 19. e4 {[%clk 0:03:43]}
19... Bd7 {[%clk 0:04:23.7]} 20. e5 {[%clk 0:03:31]} 20... Qf4 {[%clk
0:04:21.8]} 21. Qc1 {[%clk 0:03:22.7]} 21... Qd4 {[%clk 0:04:15.5]} 22. Qc4
{[%clk 0:03:07.3]} 22... Qxc4 {[%clk 0:04:02.9]} 23. Bxc4 {[%clk 0:03:05.8]}
23... Bf5 {[%clk 0:04:00.7]} 24. h3 {[%clk 0:02:59.1]} 24... Rac8 {[%clk
0:03:59.1]} 25. Rac1 {[%clk 0:02:55.8]} 25... a6 {[%clk 0:03:57.4]} 26. f3
{[%clk 0:02:49.6]} 26... b5 {[%clk 0:03:56.1]} 27. Bb3 {[%clk 0:02:46.9]} 27...
Re8 {[%clk 0:03:35.8]} 28. Rxc8 {[%clk 0:02:43.4]} 28... Rxc8 {[%clk 0:03:34.3]}
29. g4 {[%clk 0:02:40.9]} 29... Bd3 {[%clk 0:03:31.9]} 30. Re3 {[%clk
0:02:34.4]} 30... Bc4 {[%clk 0:03:30.8]} 31. Kf2 {[%clk 0:02:30.3]} 31... Bxb3
{[%clk 0:03:29]} 32. Rxb3 {[%clk 0:02:29.4]} 32... Rc5 {[%clk 0:03:16.9]} 33.
Rd3 {[%clk 0:02:28.2]} 33... Kf8 {[%clk 0:03:16.2]} 34. Ke3 {[%clk 0:02:27.3]}
34... Ke7 {[%clk 0:03:15.4]} 35. f4 {[%clk 0:02:26.6]} 35... Kd7 {[%clk
0:03:12.8]} 36. h4 {[%clk 0:02:25.6]} 36... a5 {[%clk 0:03:09.9]} 37. Ke4 {[%clk
0:02:19.7]} 37... g6 {[%clk 0:03:01.7]} 38. f5 {[%clk 0:02:17.9]} 38... Rc4+
{[%clk 0:03:00.4]} 39. Rd4 {[%clk 0:02:09.8]} 39... Rc3 {[%clk 0:02:54.7]} 40.
e6+ {[%clk 0:02:08.4]} 40... fxe6 {[%clk 0:02:53.7]} 41. dxe6+ {[%clk
0:02:04.8]} 41... Ke7 {[%clk 0:02:52.8]} 42. Ke5 {[%clk 0:02:00.5]} 42... Re3+
{[%clk 0:02:40]} 43. Kd5 {[%clk 0:01:54.1]} 43... g5 {[%clk 0:02:30.8]} 44. hxg5
{[%clk 0:01:51.1]} 44... hxg5 {[%clk 0:02:29.5]} 45. Kc5 {[%clk 0:01:49.1]}
45... Rxa3 {[%clk 0:02:26.6]} 46. Kxb5 {[%clk 0:01:47.4]} 46... Ra1 {[%clk
0:02:21.2]} 47. Rd7+ {[%clk 0:01:43.9]} 47... Ke8 {[%clk 0:02:17.8]} 48. Ra7
{[%clk 0:01:37.6]} 48... Rg1 {[%clk 0:02:12.6]} 49. f6 {[%clk 0:01:34.3]} 49...
Re1 {[%clk 0:02:07.5]} 50. Ra8# {[%clk 0:01:32.6]} 1-0

[Event "Live Chess"]
[Site "Chess.com"]
[Date "2023.05.20"]
[Round "-"]
[White "JoeyCage"]
[Black "LutherSullivan"]
[Result "1/2-1/2"]
[WhiteElo "2295"]
[BlackElo "1878"]
[TimeControl "300"]
[EndTime "10:27:09 PDT"]
[Termination "Game drawn - timeout vs insufficient material"]

1. e4 {[%clk 0:04:50.4]} 1... c5 {[%clk 0:04:58.7]} 2. Nf3 {[%clk 0:04:49.1]}
2... Nc6 {[%clk 0:04:58.2]} 3. d4 {[%clk 0:04:48.3]} 3... cxd4 {[%clk
0:04:57.7]} 4. Nxd4 {[%clk 0:04:47.9]} 4... g6 {[%clk 0:04:57.3]} 5. Nc3 {[%clk
0:04:46.8]} 5... Bg7 {[%clk 0:04:56.1]} 6. Be3 {[%clk 0:04:45.7]} 6... Nf6
{[%clk 0:04:55.5]} 7. Bc4 {[%clk 0:04:42.7]} 7... O-O {[%clk 0:04:54.6]} 8. Bb3
{[%clk 0:04:41.7]} 8... a5 {[%clk 0:04:50.2]} 9. a4 {[%clk 0:04:40.3]} 9... Ng4
{[%clk 0:04:48.5]} 10. Qxg4 {[%clk 0:04:37]} 10... Nxd4 {[%clk 0:04:47.8]} 11.
Qd1 {[%clk 0:04:26.5]} 11... Nxb3 {[%clk 0:04:45.9]} 12. cxb3 {[%clk 0:04:25.6]}
12... d6 {[%clk 0:04:45]} 13. Bd4 {[%clk 0:04:24.5]} 13... Be6 {[%clk
0:04:41.1]} 14. Bxg7 {[%clk 0:04:22.8]} 14... Kxg7 {[%clk 0:04:40.6]} 15. O-O
{[%clk 0:04:22]} 15... Qb6 {[%clk 0:04:27.8]} 16. Nd5 {[%clk 0:04:19.3]} 16...
Bxd5 {[%clk 0:04:26.7]} 17. Qxd5 {[%clk 0:04:17]} 17... Rfc8 {[%clk 0:04:25.9]}
18. Rac1 {[%clk 0:04:14.9]} 18... Qb4 {[%clk 0:04:12.7]} 19. Rc4 {[%clk
0:04:07.5]} 19... Qxb3 {[%clk 0:04:02.9]} 20. Rxc8 {[%clk 0:03:47.6]} 20... Qxd5
{[%clk 0:04:00.3]} 21. exd5 {[%clk 0:03:41.8]} 21... Rxc8 {[%clk 0:03:58.5]} 22.
g3 {[%clk 0:03:40.5]} 22... Rc4 {[%clk 0:03:49.1]} 23. b3 {[%clk 0:03:38.9]}
23... Rd4 {[%clk 0:03:48.1]} 24. Rc1 {[%clk 0:03:34.3]} 24... Kf6 {[%clk
0:03:33.9]} 25. Rc7 {[%clk 0:03:31]} 25... Rb4 {[%clk 0:03:32.8]} 26. Rc3 {[%clk
0:03:29.7]} 26... Ke5 {[%clk 0:03:30.8]} 27. Re3+ {[%clk 0:03:28.6]} 27... Re4
{[%clk 0:02:44.9]} 28. Rd3 {[%clk 0:03:26]} 28... Re1+ {[%clk 0:02:08]} 29. Kg2
{[%clk 0:03:24.4]} 29... Ke4 {[%clk 0:02:07.7]} 30. Rd2 {[%clk 0:03:22.2]} 30...
f5 {[%clk 0:01:48.6]} 31. h4 {[%clk 0:03:17.5]} 31... b6 {[%clk 0:01:45.3]} 32.
Kh2 {[%clk 0:03:02.8]} 32... Kf3 {[%clk 0:01:32.8]} 33. Rc2 {[%clk 0:03:01]}
33... Rb1 {[%clk 0:01:26.8]} 34. Rc7 {[%clk 0:02:54]} 34... Rxb3 {[%clk
0:01:18.4]} 35. Rxe7 {[%clk 0:02:52.6]} 35... Kxf2 {[%clk 0:01:13.5]} 36. Rxh7
{[%clk 0:02:49.8]} 36... Rxg3 {[%clk 0:01:10.8]} 37. Rd7 {[%clk 0:02:48.4]}
37... Rg4 {[%clk 0:01:02.1]} 38. Kh3 {[%clk 0:02:47.4]} 38... Rxa4 {[%clk
0:00:58.5]} 39. Rxd6 {[%clk 0:02:46]} 39... Ra3+ {[%clk 0:00:39.6]} 40. Kh2
{[%clk 0:02:44.3]} 40... Rg3 {[%clk 0:00:38.2]} 41. Rxb6 {[%clk 0:02:42.3]}
41... Rg4 {[%clk 0:00:36.7]} 42. Kh3 {[%clk 0:02:40.6]} 42... a4 {[%clk
0:00:33.9]} 43. d6 {[%clk 0:02:38.1]} 43... Rd4 {[%clk 0:00:31.7]} 44. Rb2+
{[%clk 0:02:33.7]} 44... Kf3 {[%clk 0:00:29.1]} 45. Ra2 {[%clk 0:02:33.1]} 45...
f4 {[%clk 0:00:26.5]} 46. d7 {[%clk 0:02:26.9]} 46... Rxd7 {[%clk 0:00:25.1]}
47. Rxa4 {[%clk 0:02:26.2]} 47... Rd3 {[%clk 0:00:24.2]} 48. Ra2 {[%clk
0:02:22.8]} 48... Ke4+ {[%clk 0:00:23]} 49. Kg2 {[%clk 0:02:18.8]} 49... Kf5
{[%clk 0:00:22.4]} 50. Ra5+ {[%clk 0:02:14.8]} 50... Kf6 {[%clk 0:00:21]} 51.
Rg5 {[%clk 0:02:09.9]} 51... Re3 {[%clk 0:00:17.3]} 52. Kf2 {[%clk 0:02:08.5]}
52... Rh3 {[%clk 0:00:16.2]} 53. Rg4 {[%clk 0:02:03.2]} 53... Kf5 {[%clk
0:00:15]} 54. Rg5+ {[%clk 0:02:01.6]} 54... Ke4 {[%clk 0:00:13.8]} 55. Rxg6
{[%clk 0:02:00.1]} 55... Rh2+ {[%clk 0:00:13]} 56. Kg1 {[%clk 0:01:58.7]} 56...
Rxh4 {[%clk 0:00:12]} 57. Rg8 {[%clk 0:01:56]} 57... Kf3 {[%clk 0:00:11.1]} 58.
Ra8 {[%clk 0:01:52.9]} 58... Kg3 {[%clk 0:00:09.9]} 59. Ra3+ {[%clk 0:01:49]}
59... f3 {[%clk 0:00:08.5]} 60. Rb3 {[%clk 0:01:42.2]} 60... Rc4 {[%clk
0:00:07.8]} 61. Rb1 {[%clk 0:01:40.5]} 61... Re4 {[%clk 0:00:07.3]} 62. Rc1
{[%clk 0:01:32.7]} 62... Re2 {[%clk 0:00:06.6]} 63. Rb1 {[%clk 0:01:22]} 63...
Rg2+ {[%clk 0:00:06.1]} 64. Kh1 {[%clk 0:01:19.7]} 64... Rh2+ {[%clk 0:00:04.7]}
65. Kg1 {[%clk 0:01:18.5]} 65... f2+ {[%clk 0:00:04.3]} 66. Kf1 {[%clk
0:01:17.3]} 66... Rh1+ {[%clk 0:00:03.9]} 67. Ke2 {[%clk 0:01:16.6]} 67... Rxb1
{[%clk 0:00:03.5]} 68. Kd2 {[%clk 0:01:16.4]} 68... f1=Q {[%clk 0:00:02]} 69.
Kc2 {[%clk 0:01:16.3]} 69... Qd1+ {[%clk 0:00:01.6]} 70. Kc3 {[%clk 0:01:15.4]}
70... Rb3+ {[%clk 0:00:01.3]} 71. Kc4 {[%clk 0:01:14.9]} 71... Qd3+ {[%clk
0:00:01]} 72. Kc5 {[%clk 0:01:14.8]} 72... Rb5+ {[%clk 0:00:00.6]} 73. Kc6
{[%clk 0:01:14.7]} 73... Qd5+ {[%clk 0:00:00.2]} 74. Kc7 {[%clk 0:01:14.3]}
1/2-1/2

[Event "Live Chess"]
[Site "Chess.com"]
[Date "2023.05.20"]
[Round "-"]
[White "LodeshChess"]
[Black "CocheseUK"]
[Result "1-0"]
[WhiteElo "927"]
[BlackElo "1141"]
[TimeControl "300"]
[EndTime "10:27:12 PDT"]
[Termination "LodeshChess won on time"]

1. e4 {[%clk 0:04:57.8]} 1... e5 {[%clk 0:04:55.5]} 2. Nf3 {[%clk 0:04:57.1]}
2... Nc6 {[%clk 0:04:48.7]} 3. c3 {[%clk 0:04:53.7]} 3... d6 {[%clk 0:04:43]} 4.
h3 {[%clk 0:04:49.7]} 4... Bd7 {[%clk 0:03:58.5]} 5. d4 {[%clk 0:04:47.1]} 5...
Nf6 {[%clk 0:03:51.4]} 6. Bd3 {[%clk 0:04:31.5]} 6... Be7 {[%clk 0:03:45.6]} 7.
O-O {[%clk 0:04:28.4]} 7... O-O {[%clk 0:03:43.5]} 8. Bg5 {[%clk 0:04:25.8]}
8... h6 {[%clk 0:03:33.6]} 9. Bh4 {[%clk 0:04:22.3]} 9... Qc8 {[%clk 0:03:11.8]}
10. dxe5 {[%clk 0:03:53.4]} 10... dxe5 {[%clk 0:03:09]} 11. Kh2 {[%clk
0:03:34.6]} 11... g5 {[%clk 0:02:47.8]} 12. Bg3 {[%clk 0:03:30.4]} 12... g4
{[%clk 0:02:44.1]} 13. Nxe5 {[%clk 0:03:17.8]} 13... Nxe5 {[%clk 0:02:39.8]} 14.
h4 {[%clk 0:03:00.1]} 14... Ng6 {[%clk 0:02:25.7]} 15. Nd2 {[%clk 0:02:42.6]}
15... Nh5 {[%clk 0:02:20.1]} 16. f3 {[%clk 0:02:16]} 16... Nxg3 {[%clk
0:02:14.3]} 17. Kxg3 {[%clk 0:02:14.3]} 17... Bxh4+ {[%clk 0:02:07.3]} 18. Kh2
{[%clk 0:02:12.4]} 18... Nf4 {[%clk 0:01:31]} 19. Nc4 {[%clk 0:02:03.1]} 19...
gxf3 {[%clk 0:01:09.7]} 20. Qxf3 {[%clk 0:01:40.9]} 20... Ng6 {[%clk 0:00:46.8]}
21. g3 {[%clk 0:01:24.5]} 21... Bg4 {[%clk 0:00:39.6]} 22. Qf2 {[%clk
0:01:07.7]} 22... Be7 {[%clk 0:00:35.6]} 23. e5 {[%clk 0:00:55]} 23... Qe6
{[%clk 0:00:17.9]} 24. Bxg6 {[%clk 0:00:41.4]} 24... Qxg6 {[%clk 0:00:13.7]} 25.
Qd4 {[%clk 0:00:19.4]} 25... Rad8 {[%clk 0:00:07.9]} 26. Qe3 {[%clk 0:00:15.8]}
26... h5 {[%clk 0:00:02.4]} 27. Rf4 {[%clk 0:00:11]} 1-0

[Event "Live Chess"]
[Site "Chess.com"]
[Date "2023.05.20"]
[Round "-"]
[White "matt1979"]
[Black "Horseymobile"]
[Result "0-1"]
[WhiteElo "1471"]
[BlackElo "1250"]
[TimeControl "300"]
[EndTime "10:27:16 PDT"]
[Termination "Horseymobile won by resignation"]

1. f4 {[%clk 0:04:58.8]} 1... d5 {[%clk 0:04:58.3]} 2. e3 {[%clk 0:04:56.4]}
2... Nc6 {[%clk 0:04:54.6]} 3. Bb5 {[%clk 0:04:54.4]} 3... Bd7 {[%clk 0:04:52]}
4. Nf3 {[%clk 0:04:51.5]} 4... Nf6 {[%clk 0:04:50.6]} 5. d3 {[%clk 0:04:47.7]}
5... e6 {[%clk 0:04:43.6]} 6. b3 {[%clk 0:04:44.9]} 6... Bc5 {[%clk 0:04:40.6]}
7. Bxc6 {[%clk 0:04:39.8]} 7... Bxc6 {[%clk 0:04:39.1]} 8. Ne5 {[%clk
0:04:38.6]} 8... Qd6 {[%clk 0:04:33.1]} 9. Bb2 {[%clk 0:04:34.4]} 9... Bxe3
{[%clk 0:04:24.8]} 10. Qe2 {[%clk 0:04:27.2]} 10... Bxf4 {[%clk 0:04:21.9]} 11.
Nxc6 {[%clk 0:04:24.7]} 11... bxc6 {[%clk 0:04:11.5]} 12. g3 {[%clk 0:04:17.6]}
12... Bg5 {[%clk 0:04:09.2]} 13. O-O {[%clk 0:04:14.2]} 13... h5 {[%clk
0:03:44.2]} 14. Be5 {[%clk 0:03:53.2]} 14... Qe7 {[%clk 0:03:14.7]} 15. Nd2
{[%clk 0:03:44.2]} 15... h4 {[%clk 0:02:34.1]} 16. Nf3 {[%clk 0:03:38.9]} 16...
Ng4 {[%clk 0:02:09.7]} 17. Nxh4 {[%clk 0:03:26.7]} 17... Nxe5 {[%clk 0:02:03.3]}
18. Qxe5 {[%clk 0:03:16.8]} 18... Bxh4 {[%clk 0:01:59.6]} 19. Qxg7 {[%clk
0:03:10.9]} 19... O-O-O {[%clk 0:01:32.1]} 20. Rxf7 {[%clk 0:03:01.2]} 20... Qd6
{[%clk 0:01:15]} 21. gxh4 {[%clk 0:02:39.3]} 21... Rhg8 {[%clk 0:01:10.3]} 22.
Qxg8 {[%clk 0:02:35.9]} 22... Rxg8+ {[%clk 0:01:08.8]} 0-1

[Event "Live Chess"]
[Site "Chess.com"]
[Date "2023.05.20"]
[Round "-"]
[White "zdanevych"]
[Black "Dark_Night123"]
[Result "1/2-1/2"]
[WhiteElo "1553"]
[BlackElo "1575"]
[TimeControl "300"]
[EndTime "10:27:20 PDT"]
[Termination "Game drawn by agreement"]

1. d4 {[%clk 0:04:58.6]} 1... Nf6 {[%clk 0:04:59]} 2. c4 {[%clk 0:04:54.5]} 2...
e6 {[%clk 0:04:58.3]} 3. Nc3 {[%clk 0:04:53.8]} 3... Bb4 {[%clk 0:04:57.4]} 4.
a3 {[%clk 0:04:53.3]} 4... Bxc3+ {[%clk 0:04:56.4]} 5. bxc3 {[%clk 0:04:53.2]}
5... b6 {[%clk 0:04:55.9]} 6. Nf3 {[%clk 0:04:51.9]} 6... Bb7 {[%clk 0:04:55.2]}
7. Bg5 {[%clk 0:04:51.1]} 7... h6 {[%clk 0:04:54]} 8. Bh4 {[%clk 0:04:50.1]}
8... d6 {[%clk 0:04:52]} 9. e3 {[%clk 0:04:48.6]} 9... Nbd7 {[%clk 0:04:51.3]}
10. Bd3 {[%clk 0:04:47.9]} 10... g5 {[%clk 0:04:48.2]} 11. Bg3 {[%clk
0:04:46.8]} 11... Ne4 {[%clk 0:04:47.5]} 12. Qc2 {[%clk 0:04:43.4]} 12... f5
{[%clk 0:04:43.9]} 13. h3 {[%clk 0:04:41]} 13... Ndf6 {[%clk 0:04:42.5]} 14. O-O
{[%clk 0:04:36.7]} 14... Nxg3 {[%clk 0:04:35.7]} 15. fxg3 {[%clk 0:04:35.8]}
15... Qe7 {[%clk 0:04:28.5]} 16. Rfe1 {[%clk 0:04:13.8]} 16... Ne4 {[%clk
0:04:24.8]} 17. Bxe4 {[%clk 0:04:11.3]} 17... Bxe4 {[%clk 0:04:23.7]} 18. Qa4+
{[%clk 0:04:06.9]} 18... c6 {[%clk 0:04:16.2]} 19. Nd2 {[%clk 0:04:02.2]} 19...
Qd7 {[%clk 0:03:58.3]} 20. Nxe4 {[%clk 0:03:55.4]} 20... fxe4 {[%clk 0:03:58.2]}
21. Rf1 {[%clk 0:03:50.4]} 21... O-O-O {[%clk 0:03:52]} 22. d5 {[%clk 0:03:37]}
22... exd5 {[%clk 0:03:46.5]} 23. cxd5 {[%clk 0:03:35.8]} 23... cxd5 {[%clk
0:03:45.7]} 24. Qxd7+ {[%clk 0:03:34.4]} 24... Rxd7 {[%clk 0:03:40.2]} 25. Rad1
{[%clk 0:03:31.8]} 25... Rc7 {[%clk 0:03:34.4]} 26. Rxd5 {[%clk 0:03:29.9]}
26... Rxc3 {[%clk 0:03:33.8]} 27. a4 {[%clk 0:03:24]} 27... Rxe3 {[%clk
0:03:31.7]} 28. Rxd6 {[%clk 0:03:22.2]} 28... Rxg3 {[%clk 0:03:30.4]} 29. Rf7
{[%clk 0:03:17.1]} 29... Rd8 {[%clk 0:03:22.8]} 30. Rc6+ {[%clk 0:03:14.1]}
30... Kb8 {[%clk 0:03:21]} 31. Rcc7 {[%clk 0:03:13.2]} 31... e3 {[%clk
0:03:15.5]} 32. Rxa7 {[%clk 0:03:11.6]} 32... e2 {[%clk 0:03:13.7]} 33. Rae7
{[%clk 0:03:08.4]} 33... Rd1+ {[%clk 0:03:11.5]} 34. Kh2 {[%clk 0:03:07.5]}
34... Rxg2+ {[%clk 0:03:02.2]} 35. Kxg2 {[%clk 0:03:06]} 35... e1=Q {[%clk
0:03:01.1]} 36. Rxe1 {[%clk 0:03:04.7]} 36... Rxe1 {[%clk 0:03:01]} 37. Rf6
{[%clk 0:02:58.8]} 37... Kc7 {[%clk 0:02:54.4]} 38. Rxh6 {[%clk 0:02:57.7]}
38... Re4 {[%clk 0:02:52.8]} 39. Rh7+ {[%clk 0:02:53.6]} 39... Kc6 {[%clk
0:02:51.4]} 40. Ra7 {[%clk 0:02:52.3]} 40... g4 {[%clk 0:02:48.8]} 41. hxg4
{[%clk 0:02:50.2]} 41... Rxg4+ {[%clk 0:02:47.7]} 42. Kf3 {[%clk 0:02:49.7]}
42... Rg5 {[%clk 0:02:46.6]} 43. Ke4 {[%clk 0:02:48.1]} 43... Rc5 {[%clk
0:02:40.8]} 44. Kd4 {[%clk 0:02:45.3]} 44... Rd5+ {[%clk 0:02:37.6]} 45. Kc4
{[%clk 0:02:44.4]} 45... Rc5+ {[%clk 0:02:36.6]} 46. Kd4 {[%clk 0:02:43.7]}
46... Rd5+ {[%clk 0:02:35.7]} 1/2-1/2

[Event "Live Chess"]
[Site "Chess.com"]
[Date "2023.05.20"]
[Round "-"]
[White "jameskwong"]
[Black "Misha145Chess"]
[Result "1-0"]
[WhiteElo "2162"]
[BlackElo "611"]
[TimeControl "300"]
[EndTime "10:27:21 PDT"]
[Termination "jameskwong won by checkmate"]

1. e4 {[%clk 0:04:58.5]} 1... e6 {[%clk 0:04:55.4]} 2. d4 {[%clk 0:04:57]} 2...
d5 {[%clk 0:04:51.3]} 3. e5 {[%clk 0:04:55.3]} 3... Nc6 {[%clk 0:04:49.3]} 4.
Nf3 {[%clk 0:04:51.7]} 4... Bb4+ {[%clk 0:04:47.3]} 5. c3 {[%clk 0:04:50]} 5...
Ba5 {[%clk 0:04:45.6]} 6. a4 {[%clk 0:04:45.5]} 6... Bb6 {[%clk 0:04:29.4]} 7.
Bd3 {[%clk 0:04:38.9]} 7... h6 {[%clk 0:04:21.4]} 8. O-O {[%clk 0:04:35.7]} 8...
Nge7 {[%clk 0:04:19.7]} 9. b4 {[%clk 0:04:31.2]} 9... a5 {[%clk 0:04:13.9]} 10.
b5 {[%clk 0:04:27.7]} 10... Na7 {[%clk 0:04:07.6]} 11. Ba3 {[%clk 0:04:20.8]}
11... O-O {[%clk 0:04:00.2]} 12. Nbd2 {[%clk 0:04:16.2]} 12... Re8 {[%clk
0:03:51.7]} 13. Nh4 {[%clk 0:03:46.1]} 13... g5 {[%clk 0:03:49]} 14. Nhf3 {[%clk
0:03:43.7]} 14... Nf5 {[%clk 0:03:47]} 15. g4 {[%clk 0:03:32]} 15... Nh4 {[%clk
0:03:40.1]} 16. Nxh4 {[%clk 0:03:30.4]} 16... gxh4 {[%clk 0:03:38.7]} 17. f4
{[%clk 0:03:12.2]} 17... f5 {[%clk 0:03:33.6]} 18. gxf5 {[%clk 0:03:05.2]} 18...
exf5 {[%clk 0:03:33.5]} 19. Qh5 {[%clk 0:03:03.5]} 19... Kg7 {[%clk 0:03:15]}
20. Kh1 {[%clk 0:02:59.5]} 20... Qd7 {[%clk 0:03:07.1]} 21. Rg1+ {[%clk
0:02:56.8]} 21... Kh7 {[%clk 0:03:03.9]} 22. Qg6+ {[%clk 0:02:52.2]} 22... Kh8
{[%clk 0:03:00.1]} 23. Bxf5 {[%clk 0:02:49.3]} 23... Qg7 {[%clk 0:02:49.8]} 24.
Qxg7# {[%clk 0:02:47.6]} 1-0